fUSD/lending_fUSD_20240119
["ID","MTS","AMOUNT","RATE_DAILY","PERIOD"]
[312145494,1705668659781,-500.0,0.00022969,2]
[312145495,1705668659792,-269.05654257,0.00022969,2]
[312145496,1705668659805,-230.94345743,0.00022969,2]
[312145497,1705668659821,-500.0,0.00022969,2]
[312145498,1705668659832,-672.61,0.00022969,2]
[312145499,1705668659843,-1546.69,0.00022969,2]
[312145500,1705668659855,-500.0,0.00022969,2]
[312145501,1705668659866,-500.0,0.00022969,2]
[312145502,1705668659878,-922.13,0.00022969,2]
[312145503,1705668659890,-617.47,0.00022969,2]
[312145504,1705668659901,-100.38976295,0.0002297,2]
[312145505,1705668659914,-2856.97549744,0.0002297,2]
[312145506,1705668659925,-3053.32433921,0.0002297,2]
[312145507,1705668659936,-500.0,0.0002297,2]
[312145508,1705668659947,-599.43,0.0002297,2]
[312145509,1705668659963,-500.0,0.0002297,2]
[312145510,1705668659973,-500.0,0.0002297,2]
[312145511,1705668659984,-422.79668422,0.0002297,2]
[312145512,1705668659999,-77.20331578,0.0002297,2]
[312145513,1705668660011,-500.0,0.0002297,2]
[312145514,1705668660022,-741.61,0.0002297,2]
[312145515,1705668660034,-500.0,0.0002297,2]
[312145516,1705668660046,-500.0,0.0002297,2]
[312145517,1705668660058,-513.13397689,0.0002297,2]
[312145518,1705668660069,-500.0,0.0002297,2]
[312145519,1705668660081,-500.0,0.0002297,2]
[312145520,1705668660092,-421.03400449,0.0002297,2]
[312145521,1705668660102,-398.70945939,0.0002297,2]
[312145522,1705668660113,-500.0,0.0002297,2]
[312145523,1705668660124,-500.0,0.0002297,2]
[312145524,1705668660135,-500.0,0.0002297,2]
[312145525,1705668660146,-690.69,0.0002297,2]
[312145526,1705668660157,-340.693749,0.0002297,2]
[312145527,1705668660242,-159.306251,0.0002297,2]
[312145528,1705668660254,-500.0,0.0002297,2]
[312145529,1705668660266,-173.03510899,0.0002297,2]
[312145530,1705668660280,-326.96489101,0.0002297,2]
[312145531,1705668660291,-500.0,0.0002297,2]
[312145532,1705668660303,-500.0,0.0002297,2]
[312145533,1705668660314,-500.0,0.0002297,2]
[312145534,1705668660326,-500.0,0.0002297,2]
[312145535,1705668660337,-500.0,0.0002297,2]
[312145536,1705668660349,-500.0,0.0002297,2]
[312145537,1705668660360,-303.50400256,0.0002297,2]
[312145538,1705668660373,-500.0,0.0002297,2]
[312145539,1705668660384,-502.2959809,0.0002297,2]
[312145540,1705668660396,-504.23880749,0.0002297,2]
[312145541,1705668660407,-500.0,0.0002297,2]
[312145542,1705668660419,-500.0,0.0002297,2]
[312145543,1705668660430,-500.0,0.0002297,2]
[312145544,1705668660441,-500.0,0.0002297,2]
[312145545,1705668660452,-500.0,0.0002297,2]
[312145546,1705668660463,-500.0,0.0002297,2]
[312145547,1705668660475,-500.0,0.0002297,2]
[312145548,1705668660487,-500.0,0.0002297,2]
[312145549,1705668660498,-500.0,0.0002297,2]
[312145550,1705668660509,-500.0,0.0002297,2]
[312145551,1705668660520,-503.96265419,0.0002297,2]
[312145552,1705668660531,-500.0,0.0002297,2]
[312145553,1705668660543,-936.22,0.0002297,2]
[312145554,1705668660554,-500.0,0.0002297,2]
[312145555,1705668660565,-500.0,0.0002297,2]
[312145556,1705668660576,-500.0,0.0002297,2]
[312145557,1705668660587,-500.0,0.0002297,2]
[312145558,1705668660599,-500.0,0.0002297,2]
[312145559,1705668660609,-500.0,0.0002297,2]
[312145560,1705668660620,-140.21057539,0.0002297,2]
[312145561,1705668660678,-136.30130677,0.0002297,2]
[312145562,1705668660689,-500.0,0.0002297,2]
[312145563,1705668660703,-800.61,0.0002297,2]
[312145564,1705668660714,-500.0,0.0002297,2]
[312145565,1705668660729,-500.0,0.0002297,2]
[312145566,1705668660740,-500.0,0.0002297,2]
[312145567,1705668660752,-700.91,0.0002297,2]
[312145568,1705668660763,-500.0,0.0002297,2]
[312145569,1705668660774,-569.08,0.0002297,2]
[312145570,1705668660785,-500.0,0.0002297,2]
[312145571,1705668660796,-500.0,0.0002297,2]
[312145572,1705668660806,-505.00560486,0.0002297,2]
[312145573,1705668660817,-500.0,0.0002297,2]
[312145574,1705668660828,-500.0,0.0002297,2]
[312145575,1705668660839,-500.0,0.0002297,2]
[312145576,1705668660850,-517.07,0.0002297,2]
[312145577,1705668660861,-500.0,0.0002297,2]
[312145578,1705668660872,-500.0,0.0002297,2]
[312145579,1705668660883,-500.0,0.0002297,2]
[312145580,1705668660894,-500.0,0.0002297,2]
[312145581,1705668660905,-500.0,0.0002297,2]
[312145582,1705668660916,-500.0,0.0002297,2]
[312145583,1705668660927,-500.0,0.0002297,2]
[312145584,1705668660937,-500.0,0.0002297,2]
[312145585,1705668660948,-500.0,0.0002297,2]
[312145586,1705668660958,-502.7162422,0.0002297,2]
[312145587,1705668660972,-776.74,0.0002297,2]
[312145588,1705668660983,-500.0,0.0002297,2]
[312145589,1705668660994,-500.0,0.0002297,2]
[312145590,1705668661005,-500.0,0.0002297,2]
[312145591,1705668661017,-500.0,0.0002297,2]
[312145592,1705668661028,-959.62,0.0002297,2]
[312145593,1705668661039,-500.0,0.0002297,2]
[312145594,1705668661049,-500.0,0.0002297,2]
[312145595,1705668661061,-1117.3,0.0002297,2]
[312145596,1705668661072,-726.99,0.0002297,2]
[312145597,1705668661084,-1441.17,0.0002297,2]
[312145598,1705668661095,-565.83,0.0002297,2]
[312145599,1705668661107,-2249.32,0.0002297,2]
[312145600,1705668661118,-500.0,0.0002297,2]
[312145601,1705668661129,-500.0,0.0002297,2]
[312145602,1705668661140,-500.0,0.0002297,2]
[312145603,1705668661151,-2710.06,0.0002297,2]
[312145604,1705668661162,-4316.19,0.0002297,2]
[312145605,1705668661173,-500.0,0.0002297,2]
[312145606,1705668661185,-500.0,0.0002297,2]
[312145607,1705668661197,-500.0,0.0002297,2]
[312145608,1705668661209,-500.0,0.0002297,2]
[312145609,1705668661220,-500.0,0.0002297,2]
[312145610,1705668661231,-787.5,0.0002297,2]
[312145611,1705668661242,-500.0,0.0002297,2]
[312145612,1705668661253,-500.0,0.0002297,2]
[312145613,1705668661264,-596.11,0.0002297,2]
[312145614,1705668661275,-500.0,0.0002297,2]
[312145615,1705668661287,-500.0,0.0002297,2]
[312145616,1705668661298,-681.41,0.0002297,2]
[312145617,1705668661309,-500.0,0.0002297,2]
[312145618,1705668661320,-503.98481922,0.0002297,2]
[312145619,1705668661332,-640.62,0.0002297,2]
[312145620,1705668661343,-543.56,0.0002297,2]
[312145621,1705668661354,-500.0,0.0002297,2]
[312145622,1705668661365,-537.9,0.0002297,2]
[312145623,1705668661375,-621.6043532,0.00022971,2]
[312145624,1705668661389,-500.0,0.00022971,2]
[312145625,1705668661401,-500.0,0.00022971,2]
[312145626,1705668661412,-1218.79,0.00022971,2]
[312145627,1705668661424,-500.0,0.00022971,2]
[312145628,1705668661435,-500.0,0.00022971,2]
[312145629,1705668661446,-672.61,0.00022971,2]
[312145630,1705668661459,-500.0,0.00022972,2]
[312145631,1705668661470,-504.08618153,0.00022972,2]
[312145632,1705668661480,-500.0,0.00022972,2]
[312145633,1705668661491,-501.71143121,0.00022972,2]
[312145634,1705668661502,-500.0,0.00022972,2]
[312145635,1705668661513,-565.76587929,0.00022972,2]
[312145636,1705668661524,-273.6919096,0.00022972,2]
[312145637,1705668662427,-226.3080904,0.00022972,2]
[312145638,1705668662439,-113.35541321,0.00022972,2]
[312145639,1705668663025,-299.02282421,0.00022972,2]
[312145640,1705668663038,-87.62176258,0.00022972,2]
[312145641,1705668663048,-387.37823745,0.00022972,2]
[312145642,1705668663061,-112.62176255,0.00022972,2]
[312145643,1705668663071,-500.0,0.00022972,2]
[312145644,1705668663082,-500.0,0.00022972,2]
[312145645,1705668663093,-75.95720146,0.00022972,2]
[312145646,1705668682414,934.03944223,9e-05,2]
[312145647,1705668734641,-155.0,0.00020536,2]
[312145648,1705668734668,-4395.32725573,0.00020536,2]
[312145670,1705669272441,-155.0,0.00018609,2]
[312145671,1705669289374,-307.18,0.0001861,2]
[312145672,1705669390268,-279.39893279,0.00020326,2]
[312145673,1705669390293,-289.03050661,0.00020327,2]
[312145674,1705669390318,-394.95584771,0.00020327,2]
[312145675,1705669390344,-718.16,0.00020328,2]
[312145676,1705669390369,-482.85,0.00020328,2]
[312145677,1705669390396,-523.92202884,0.00020373,2]
[312145678,1705669396196,157.54,0.00020264,2]
[312145679,1705669396561,678.06471289,0.00020327,2]
[312145680,1705669396588,53.56528711,0.00020327,2]
[312145681,1705669399167,157.67,0.00020335,2]
[312145682,1705669399892,494.47329966,0.00020327,2]
[312145683,1705669410393,-151.1,0.00020374,2]
[312145684,1705669410425,-157.54,0.00020415,2]
[312145685,1705669410452,-2146.10378163,0.00020429,2]
[312145686,1705669422328,691.36,0.00020327,2]
[312145687,1705669422353,161.04982139,0.00020327,2]
[312145688,1705669433602,-314.1207076,0.0002043,2]
[312145689,1705669433628,-168.16390346,0.00020436,2]
[312145690,1705669433655,-720.42,0.00020474,2]
[312145691,1705669433680,-722.35,0.00020476,2]
[312145692,1705669433704,-254.99,0.00020477,2]
[312145693,1705669438229,504.03826774,0.00020429,2]
[312145694,1705669444856,-230.14933227,0.00020327,2]
[312145695,1705669444887,-253.31,0.000205,10]
[312145696,1705669444918,-303.4654799,0.00020533,2]
[312145697,1705669444947,-726.45127663,0.00020533,2]
[312145698,1705669444980,-1708.60534463,0.00020533,2]
[312145699,1705669445013,-2526.96202272,0.00020533,2]
[312145700,1705669445044,-254.7969714,0.00020533,2]
[312145701,1705669445076,-278.97300604,0.00020533,2]
[312145702,1705669445107,-72.72500819,0.00020533,2]
[312145703,1705669595372,323.63,0.00017731,2]
[312145704,1705669636284,-177.88514416,0.00019616,2]
[312145705,1705669636310,-418.21791161,0.00019616,2]
[312145706,1705669647035,-164.84335482,0.00019617,2]
[312145707,1705669651358,-166.51,0.00019618,2]
[312145708,1705669656260,-1768.48202506,0.00019709,2]
[312145709,1705669682116,171.1,0.00029455,120]
[312145732,1705669831597,-449.57833095,0.00019632,2]
[312145733,1705669831676,-1318.90369411,0.00019632,2]
[312145734,1705669831687,-384.72747359,0.00019633,2]
[312145735,1705669831696,-52.6660323,0.00019633,2]
[312145736,1705669831709,-1139.07017581,0.00019633,2]
[312145737,1705669831721,-416.64405,0.00019633,2]
[312145738,1705669831818,-1582.88371725,0.00019633,2]
[312145739,1705669831827,-171.1,0.00019636,2]
[312145740,1705669831837,-417.93913239,0.00019711,2]
[312145741,1705669831847,-323.63,0.00019995,2]
[312145742,1705669831856,-150.0,0.00020139,2]
[312145743,1705669831866,-83.94019826,0.00020176,2]
[312145744,1705669831879,-504.18980174,0.00020176,2]
[312145745,1705669831889,-204.0,0.00020222,2]
[312145746,1705669831898,-155.43378467,0.0002043,2]
[312145747,1705669831908,-303.01483009,0.00020433,2]
[312145748,1705669831917,-150.99,0.00020433,2]
[312145749,1705669831927,-343.02,0.00020436,2]
[312145750,1705669831936,-1979.04,0.00020436,2]
[312145751,1705669831946,-462.42,0.00020436,2]
[312145752,1705669831955,-168.16390346,0.00020436,2]
[312145753,1705669831964,-0.72768004,0.00020506,2]
[312145755,1705669837669,-302.2871499,0.00020506,2]
[312145756,1705669837679,-499.99,0.00020506,2]
[312145757,1705669837689,-150.99,0.00020506,2]
[312145758,1705669837698,-150.77564097,0.00020525,2]
[312145759,1705669837708,-150.0,0.00020531,2]
[312145760,1705669837719,-6322.59791254,0.00020532,2]
[312145761,1705669837731,-7372.25454139,0.00020532,2]
[312145762,1705669837762,-757.620545,0.00020532,2]
[312145763,1705669837792,-19700.09793036,0.00020532,2]
[312145764,1705669837803,-270.98098911,0.00020533,2]
[312145765,1705669837815,-212.47834316,0.00020533,2]
[312145766,1705669837825,-503.04874079,0.00020533,2]
[312145767,1705669837835,-210.6814645,0.00020533,2]
[312145768,1705669837845,-155.32990661,0.00020533,2]
[312145769,1705669837855,-255.74148968,0.00020533,2]
[312145770,1705669837866,-694.11215363,0.00020533,2]
[312145771,1705669837876,-376.54658441,0.00020533,2]
[312145772,1705669837887,-476.2108533,0.00020533,2]
[312145773,1705669837897,-285.40909205,0.00020533,2]
[312145774,1705669837907,-270.28714603,0.00020533,2]
[312145775,1705669837916,-293.64604086,0.00020533,2]
[312145776,1705669837927,-164.66866401,0.00020533,2]
[312145777,1705669837936,-3195.74644902,0.00020533,2]
[312145778,1705669837947,-3185.62367316,0.00020534,2]
[312145780,1705669837957,-55868.15346228,0.00020535,2]
[312145783,1705669837969,-467.47888295,0.00020535,2]
[312145786,1705669837997,-844524.84437069,0.00020535,2]
[312145789,1705669838007,-721.69,0.00020536,2]
[312145791,1705669838018,-736.75,0.00020536,2]
[312145793,1705669838029,-737.49,0.00020536,2]
[312145795,1705669838039,-2000.0,0.00020548,2]
[312145797,1705669838049,-157.54,0.00020566,2]
[312145799,1705669838059,-150.0,0.0002057,2]
[312145801,1705669838070,-303.01482994,0.00020579,2]
[312145803,1705669838080,-151.1,0.00020619,2]
[312145805,1705669838090,-303.01482994,0.00020652,2]
[312145807,1705669838100,-157.54,0.00020717,2]
[312145809,1705669838110,-303.01482994,0.00020724,2]
[312145811,1705669838120,-303.01482994,0.00020797,2]
[312145813,1705669838130,-251.33576023,0.00020843,2]
[312145814,1705669838139,-157.0,0.00020858,2]
[312145817,1705669838150,-151.1,0.00020863,2]
[312145819,1705669838160,-157.54,0.00020868,2]
[312145820,1705669838170,-303.01482994,0.0002087,2]
[312145823,1705669838180,-157.67,0.00020882,2]
[312145824,1705669838190,-400.0,0.000209,7]
[312145874,1705669838665,-176.33,0.00020917,2]
[312145876,1705669838677,-256.96,0.00020917,2]
[312145878,1705669838687,-239.07142493,0.0002092,2]
[312145881,1705669838697,-303.01482994,0.00020943,2]
[312145882,1705669838708,-711.58,0.00020947,2]
[312145885,1705669838718,-150.61,0.00020987,2]
[312145887,1705669838728,-303.01482994,0.00021016,2]
[312145889,1705669838738,-157.54,0.00021018,2]
[312145891,1705669838749,-256.96,0.00021054,2]
[312145893,1705669838759,-150.0,0.00021088,2]
[312145895,1705669838768,-303.01482994,0.00021089,2]
[312145897,1705669838779,-151.1,0.00021108,2]
[312145899,1705669838793,-588.13,0.00021154,2]
[312145901,1705669838803,-303.01482994,0.00021161,2]
[312145903,1705669838813,-735.43,0.00021166,2]
[312145905,1705669838824,-157.54,0.00021169,2]
[312145907,1705669838834,-256.96,0.00021191,2]
[312145909,1705669838844,-251.33576022,0.00021224,2]
[312145911,1705669838854,-303.01482994,0.00021234,2]
[312145913,1705669838865,-150.0,0.00021236,2]
[312145915,1705669838875,-303.01482994,0.00021307,2]
[312145917,1705669838886,-157.54,0.0002132,2]
[312145919,1705669838898,-513.27,0.00021328,2]
[312145921,1705669838908,-151.1,0.00021352,2]
[312145923,1705669838918,-157.0,0.00021358,2]
[312145925,1705669838929,-303.01482994,0.0002138,2]
[312145927,1705669838939,-157.67,0.00021428,2]
[312145930,1705669838949,-303.01482994,0.00021453,2]
[312145932,1705669838959,-176.33,0.00021465,2]
[312145933,1705669838969,-150.0,0.00021493,2]
[312145935,1705669838979,-162.73,0.00021495,2]
[312145938,1705669838990,-720.93,0.00021508,2]
[312145940,1705669839001,-517.15,0.00021514,2]
[312145942,1705669839011,-303.01482994,0.00021526,2]
[312145944,1705669839022,-174.05,0.00021586,2]
[312145946,1705669839032,-151.1,0.00021597,2]
[312145948,1705669839042,-303.01482994,0.00021598,2]
[312145949,1705669839052,-900.0,0.000216,7]
[312145952,1705669839063,-4170.9336,0.000216,2]
[312145954,1705669839074,-251.33576022,0.00021604,2]
[312145956,1705669839084,-815.55,0.00021644,2]
[312145958,1705669839094,-303.01482994,0.00021671,2]
[312145960,1705669839104,-179.82,0.00021672,2]
[312145962,1705669839115,-1300.0,0.000217,7]
[312145964,1705669839125,-182707.43448161,0.000217,2]
[312145966,1705669839135,-303.01482994,0.00021744,2]
[312145968,1705669839144,-150.0,0.00021787,2]
[312145970,1705669839155,-1800.0,0.000218,7]
[312145972,1705669839165,-34060.2481,0.00021815,2]
[312145974,1705669839175,-4025.6359,0.00021815,2]
[312145976,1705669839186,-629.328,0.00021815,2]
[312145978,1705669839196,-21699.6434,0.00021815,2]
[312145980,1705669839207,-1000.0,0.00021815,2]
[312145982,1705669839218,-1676.5457,0.00021815,2]
[312145984,1705669839228,-1423.3642,0.00021815,2]
[312145986,1705669839238,-5000.0,0.00021817,2]
[312145988,1705669839248,-55555.0,0.00021817,2]
[312145990,1705669839258,-303.01482994,0.00021817,2]
[312145992,1705669839269,-332.0457723,0.00021817,2]
[312145994,1705669839279,-152.51302001,0.00021817,2]
[312145996,1705669839289,-13005.71582706,0.00021817,2]
[312145998,1705669839300,-1447.71339774,0.00021817,2]
[312146001,1705669839309,-960.47278168,0.00021817,2]
[312146004,1705669839319,-206.0,0.0002182,2]
[312146006,1705669839329,-151.1,0.00021841,2]
[312146008,1705669839339,-157.0,0.00021859,2]
[312146010,1705669839349,-729.03,0.00021875,2]
[312146012,1705669839359,-150.0,0.00021896,2]
[312146014,1705669839370,-2300.0,0.000219,7]
[312146016,1705669839379,-250.0,0.000219,2]
[312146018,1705669839389,-1426.34073862,0.000219,5]
[312146020,1705669839399,-155.21031866,0.00021913,2]
[312146022,1705669839410,-325.82630838,0.00021913,2]
[312146024,1705669839421,-301.25336037,0.00021913,2]
[312146026,1705669839431,-372.59817034,0.00021913,2]
[312146028,1705669839441,-155.70749314,0.00021913,2]
[312146030,1705669839451,-156.74679107,0.00021913,2]
[312146032,1705669839461,-318.71536209,0.00021913,2]
[312146034,1705669839472,-417.52010037,0.00021913,2]
[312146036,1705669839483,-436.58,0.00021913,2]
[312146038,1705669839494,-3048.13565396,0.00021913,5]
[312146040,1705669839505,-400.25276388,0.00021913,2]
[312146043,1705669839516,-659.39103668,0.00021913,2]
[312146045,1705669839527,-19176.88701273,0.00021913,2]
[312146047,1705669839537,-546.59727466,0.00021913,2]
[312146049,1705669839548,-214.25314506,0.00021913,2]
[312146051,1705669839557,-536.22242276,0.00021913,2]
[312146053,1705669839569,-554.2233141,0.00021913,2]
[312146055,1705669839579,-2704.17548496,0.00021913,2]
[312146057,1705669839590,-448.84717439,0.00021914,2]
[312146059,1705669839600,-571.26644582,0.00021914,2]
[312146061,1705669839610,-1347.63284048,0.00021914,2]
[312146063,1705669839621,-178.55338146,0.00021915,2]
[312146065,1705669839631,-155.49445033,0.00021915,2]
[312146067,1705669839642,-155.69386915,0.00021915,2]
[312146069,1705669839652,-4624.96257004,0.00021916,2]
[312146071,1705669839663,-500.0,0.00021916,2]
[312146073,1705669839673,-500.0,0.00021917,2]
[312146075,1705669839683,-500.0,0.00021917,2]
[312146077,1705669839693,-500.0,0.00021917,2]
[312146079,1705669839703,-500.0,0.00021917,2]
[312146081,1705669839713,-500.0,0.00021917,2]
[312146083,1705669839723,-500.0,0.00021917,2]
[312146085,1705669839733,-500.0,0.00021917,2]
[312146087,1705669839743,-500.0,0.00021917,2]
[312146089,1705669839753,-500.0,0.00021917,2]
[312146091,1705669839763,-500.0,0.00021917,2]
[312146093,1705669839773,-500.0,0.00021917,2]
[312146095,1705669839785,-505.9689856,0.00021917,2]
[312146097,1705669839794,-500.0,0.00021917,2]
[312146099,1705669839805,-500.0,0.00021917,2]
[312146101,1705669839815,-500.0,0.00021917,2]
[312146103,1705669839827,-1166.14,0.00021917,2]
[312146105,1705669839837,-500.0,0.00021917,2]
[312146107,1705669839847,-500.0,0.00021917,2]
[312146109,1705669839857,-502.40246681,0.00021917,2]
[312146111,1705669839869,-636.19,0.00021917,2]
[312146113,1705669839879,-500.0,0.00021917,2]
[312146115,1705669839889,-500.0,0.00021917,2]
[312146118,1705669839900,-535.61,0.00021917,2]
[312146121,1705669839911,-500.0,0.00021917,2]
[312146124,1705669839921,-500.0,0.00021917,2]
[312146126,1705669839931,-500.0,0.00021917,2]
[312146128,1705669839941,-500.0,0.00021917,2]
[312146130,1705669839950,-500.0,0.00021917,2]
[312146133,1705669839961,-521.65420029,0.00021917,2]
[312146136,1705669839971,-500.0,0.00021917,2]
[312146139,1705669839981,-500.0,0.00021917,2]
[312146143,1705669839991,-881.3,0.00021917,2]
[312146146,1705669840001,-500.0,0.00021917,2]
[312146149,1705669840012,-500.0,0.00021917,2]
[312146152,1705669840022,-1150.15,0.00021917,2]
[312146155,1705669840032,-500.0,0.00021917,2]
[312146158,1705669840043,-500.0,0.00021917,2]
[312146161,1705669840053,-500.0,0.00021917,2]
[312146164,1705669840063,-500.0,0.00021917,2]
[312146166,1705669840074,-500.0,0.00021917,2]
[312146168,1705669840084,-500.0,0.00021917,2]
[312146170,1705669840094,-500.0,0.00021917,2]
[312146171,1705669840104,-500.0,0.00021917,2]
[312146172,1705669840116,-500.0,0.00021917,2]
[312146173,1705669840126,-338.20178565,0.00021917,2]
[312146174,1705669840137,-239.05195079,0.00021917,2]
[312146175,1705669840147,-558.96,0.00021917,2]
[312146176,1705669840158,-767.26,0.00021917,2]
[312146177,1705669840169,-500.0,0.00021917,2]
[312146179,1705669840179,-500.0,0.00021917,2]
[312146181,1705669840190,-671.71,0.00021917,2]
[312146183,1705669840200,-500.0,0.00021917,2]
[312146185,1705669840210,-500.0,0.00021917,2]
[312146187,1705669840220,-500.0,0.00021917,2]
[312146189,1705669840230,-500.0,0.00021917,2]
[312146191,1705669840240,-500.0,0.00021917,2]
[312146193,1705669840250,-545.37,0.00021917,2]
[312146195,1705669840260,-500.0,0.00021917,2]
[312146197,1705669840270,-698.53,0.00021917,2]
[312146199,1705669840280,-500.0,0.00021917,2]
[312146201,1705669840291,-500.0,0.00021917,2]
[312146203,1705669840300,-500.0,0.00021917,2]
[312146205,1705669840310,-500.0,0.00021917,2]
[312146207,1705669840321,-500.0,0.00021917,2]
[312146209,1705669840331,-500.0,0.00021917,2]
[312146211,1705669840341,-404.22325412,0.00021917,2]
[312146213,1705669840352,-790.21,0.00021917,2]
[312146215,1705669840362,-500.0,0.00021917,2]
[312146217,1705669840372,-703.41,0.00021917,2]
[312146219,1705669840383,-500.0,0.00021917,2]
[312146221,1705669840393,-326.26765685,0.00021917,2]
[312146223,1705669840404,-500.0,0.00021917,2]
[312146225,1705669840414,-895.32,0.00021917,2]
[312146227,1705669840424,-500.0,0.00021917,2]
[312146229,1705669840433,-500.0,0.00021917,2]
[312146231,1705669840444,-500.0,0.00021917,2]
[312146233,1705669840454,-500.0,0.00021917,2]
[312146235,1705669840464,-571.69,0.00021917,2]
[312146237,1705669840474,-647.03,0.00021917,2]
[312146239,1705669840485,-500.0,0.00021917,2]
[312146241,1705669840495,-500.0,0.00021917,2]
[312146243,1705669840505,-1927.09,0.00021917,2]
[312146245,1705669840515,-500.0,0.00021917,2]
[312146247,1705669840525,-711.44,0.00021917,2]
[312146249,1705669840535,-500.0,0.00021917,2]
[312146251,1705669840545,-500.0,0.00021917,2]
[312146253,1705669840558,-500.0,0.00021917,2]
[312146255,1705669840568,-739.94,0.00021917,2]
[312146257,1705669840580,-500.0,0.00021917,2]
[312146260,1705669840591,-500.0,0.00021917,2]
[312146262,1705669840601,-500.0,0.00021917,2]
[312146264,1705669840611,-1124.59,0.00021917,2]
[312146266,1705669840621,-500.0,0.00021917,2]
[312146268,1705669840632,-500.0,0.00021917,2]
[312146270,1705669840642,-882.8,0.00021917,2]
[312146272,1705669840653,-500.0,0.00021917,2]
[312146274,1705669840663,-664.41,0.00021917,2]
[312146276,1705669840673,-507.69,0.00021917,2]
[312146278,1705669840683,-883.64,0.00021917,2]
[312146280,1705669840692,-500.0,0.00021917,2]
[312146282,1705669840702,-1919.81,0.00021917,2]
[312146284,1705669840713,-500.0,0.00021917,2]
[312146286,1705669840723,-500.0,0.00021917,2]
[312146288,1705669840733,-500.0,0.00021917,2]
[312146290,1705669840743,-899.16,0.00021917,2]
[312146292,1705669840753,-744.37,0.00021917,2]
[312146294,1705669840764,-500.0,0.00021917,2]
[312146296,1705669840774,-500.0,0.00021917,2]
[312146298,1705669840788,-648.21,0.00021917,2]
[312146300,1705669840798,-1272.95,0.00021917,2]
[312146302,1705669840808,-1117.22,0.00021917,2]
[312146304,1705669840818,-503.0009987,0.00021917,2]
[312146306,1705669840830,-902.19,0.00021917,2]
[312146308,1705669840840,-500.0,0.00021917,2]
[312146310,1705669840849,-500.0,0.00021917,2]
[312146312,1705669840859,-500.0,0.00021917,2]
[312146314,1705669840870,-500.0,0.00021917,2]
[312146316,1705669840881,-500.0,0.00021917,2]
[312146318,1705669840891,-500.0,0.00021917,2]
[312146320,1705669840901,-500.0,0.00021917,2]
[312146322,1705669840911,-500.0,0.00021917,2]
[312146324,1705669840921,-1231.59,0.00021917,2]
[312146327,1705669840932,-648.29,0.00021917,2]
[312146329,1705669840942,-507.80056981,0.00021917,2]
[312146330,1705669840951,-540.23827717,0.00021917,2]
[312146332,1705669840961,-500.0,0.00021917,2]
[312146334,1705669840972,-500.0,0.00021917,2]
[312146337,1705669840982,-500.0,0.00021917,2]
[312146339,1705669840991,-500.0,0.00021917,2]
[312146340,1705669841002,-500.0,0.00021917,2]
[312146342,1705669841013,-500.0,0.00021917,2]
[312146344,1705669841024,-500.0,0.00021917,2]
[312146347,1705669841034,-500.0,0.00021917,2]
[312146349,1705669841047,-500.0,0.00021917,2]
[312146351,1705669841058,-500.0,0.00021917,2]
[312146353,1705669841068,-928.06,0.00021917,2]
[312146355,1705669841079,-500.0,0.00021917,2]
[312146357,1705669841088,-500.0,0.00021917,2]
[312146358,1705669841098,-500.0,0.00021917,2]
[312146360,1705669841108,-500.0,0.00021917,2]